fUSD/lending_fUSD_20250811
["ID","MTS","AMOUNT","RATE_DAILY","PERIOD"]
[378505846,1754889488209,250.0,0.00015171,2]
[378505863,1754889523251,-160.7,0.00015221,2]
[378505867,1754889528048,2837.70089002,0.0001515,2]
[378505868,1754889528070,5282.12039742,0.0001515,2]
[378505869,1754889528092,5282.12039742,0.0001515,2]
[378505870,1754889528114,5282.12039742,0.0001515,2]
[378505877,1754889531337,-155.2,0.0001515,2]
[378505906,1754889539684,-344.8,0.0001515,2]
[378505925,1754889546366,-217.72,0.0001515,2]
[378505934,1754889556537,-282.28,0.0001515,2]
[378505936,1754889571982,-422.56,0.0001515,2]
[378505937,1754889580408,-80.54208228,0.0001515,2]
[378505938,1754889580438,-276.53583544,0.0001515,2]
[378505941,1754889587504,170.0,0.0001515,7]
[378505943,1754889594265,-321.7,0.00015185,2]
[378505948,1754889608032,11395.350367,7.945e-05,2]
[378505951,1754889619471,-367.32,0.00015165,2]
[378505952,1754889628327,-200.0,0.00015165,2]
[378505953,1754889641318,-2553.82257642,0.00015165,2]
[378505954,1754889641342,-250.0,0.00015175,2]
[378505955,1754889641366,-300.0,0.0001522,2]
[378505956,1754889641390,-1200.0,0.0001522,2]
[378505957,1754889641414,-5696.17742358,0.00015221,2]
[378505958,1754889641464,1899.15818968,0.00015075,2]
[378505959,1754889643841,-149.49742358,0.00015221,2]
[378505960,1754889643868,-147.09515284,0.00015221,2]
[378505961,1754889646385,517.0,0.00014415,2]
[378505966,1754889659453,-270.72,0.00015146,2]
[378506007,1754889683526,-36.96,0.00015146,2]
[378506008,1754889683552,-103.72,0.00015146,2]
[378506034,1754889700486,-67.46421768,0.00015286,2]
[378506035,1754889700616,-206.84156464,0.00015286,2]
[378506040,1754889707850,-50000.0,0.00037384,91]
[378506041,1754889707874,-203.16548195,0.00037384,30]
[378506042,1754889707897,-1000.0,0.00037384,30]
[378506043,1754889707920,-3100.0,0.00037384,120]
[378506044,1754889707943,-598.78075357,0.00037384,30]
[378506045,1754889707966,-19684.10576795,0.00037384,120]
[378506046,1754889707989,-2616.75550976,0.00037384,30]
[378506047,1754889708011,-1000.0,0.00037384,30]
[378506048,1754889708038,-50000.0,0.00037384,30]
[378506049,1754889708063,-50000.0,0.00037384,31]
[378506051,1754889708431,-50000.0,0.00037384,32]
[378506052,1754889708457,-50000.0,0.00037384,33]
[378506053,1754889708483,-50000.0,0.00037384,34]
[378506054,1754889708511,-50000.0,0.00037384,35]
[378506055,1754889708541,-50000.0,0.00037384,36]
[378506056,1754889708568,-50000.0,0.00037384,37]
[378506057,1754889708592,-50000.0,0.00037384,38]
[378506058,1754889708615,-50000.0,0.00037384,39]
[378506059,1754889708638,-500.0,0.00037384,31]
[378506060,1754889708661,-150.0,0.00037384,30]
[378506061,1754889708687,-2000.0,0.00037384,31]
[378506063,1754889708711,-31597.03390336,0.00037384,120]
[378506064,1754889708734,-3628.47640583,0.00037384,30]
[378506065,1754889708757,-927.93243479,0.00037384,120]
[378506066,1754889708781,-54074.0,0.00037384,30]
[378506067,1754889708805,-160.70555484,0.00037384,60]
[378506068,1754889708829,-180.89954127,0.00037384,120]
[378506069,1754889708853,-247.85676618,0.00037384,30]
[378506070,1754889708877,-6000.64008481,0.00037384,120]
[378506071,1754889708901,-40000.0,0.00037384,120]
[378506072,1754889708924,-30000.0,0.00037384,120]
[378506073,1754889708947,-30000.0,0.00037384,120]
[378506074,1754889708970,-12634.0,0.00037384,120]
[378506075,1754889708993,-282.46006169,0.00037384,30]
[378506076,1754889709019,-15044.84834043,0.00037384,120]
[378506078,1754889709042,-202.99059926,0.00037384,90]
[378506079,1754889709065,-574.77919875,0.00037384,120]
[378506080,1754889709087,-158.60445263,0.00037384,120]
[378506081,1754889709110,-555233.85160324,0.00037384,30]
[378506082,1754889709133,-330.93310508,0.00037384,120]
[378506083,1754889709156,-414.83515826,0.00037384,120]
[378506084,1754889709179,-153.90968656,0.00037384,30]
[378506085,1754889709201,-333.36282677,0.00037384,120]
[378506086,1754889709224,-687.14990046,0.00037384,30]
[378506087,1754889709246,-1618.14243261,0.00037384,30]
[378506088,1754889709268,-287.74218682,0.00037384,120]
[378506089,1754889709292,-157.60300903,0.00037384,30]
[378506090,1754889709316,-447829.51518844,0.00037384,30]
[378506091,1754889709346,-10000.0,0.00037384,30]
[378506092,1754889709371,-274.0,0.00037384,30]
[378506093,1754889709394,-11763.10463453,0.00037384,60]
[378506094,1754889709418,-2999.997,0.00037384,120]
[378506095,1754889709441,-1392.90465478,0.00037384,120]
[378506096,1754889709465,-839.33176438,0.00037384,120]
[378506097,1754889709488,-1084.0,0.00037384,30]
[378506098,1754889709513,-1084.0,0.00037384,30]
[378506099,1754889709537,-1084.0,0.00037384,30]
[378506100,1754889709561,-1084.0,0.00037384,30]
[378506101,1754889709584,-1084.0,0.00037384,30]
[378506102,1754889709608,-468.30305082,0.00037384,120]
[378506103,1754889709630,-158.74793352,0.00037384,120]
[378506105,1754889709653,-500.0,0.00037384,120]
[378506106,1754889709675,-500.0,0.00037384,120]
[378506107,1754889709698,-500.0,0.00037384,120]
[378506108,1754889709722,-338.39766941,0.00037384,120]
[378506109,1754889709745,-1000.0,0.00037384,120]
[378506110,1754889709768,-1000.0,0.00037384,120]
[378506111,1754889709791,-293.10227302,0.00037384,120]
[378506112,1754889709814,-627.66943035,0.00037384,120]
[378506113,1754889709840,-1929.66,0.00037384,120]
[378506114,1754889709867,-1929.66,0.00037384,120]
[378506115,1754889709893,-1929.66,0.00037384,120]
[378506116,1754889709918,-1929.66,0.00037384,120]
[378506117,1754889709943,-1929.66,0.00037384,120]
[378506118,1754889709968,-1929.66,0.00037384,120]
[378506119,1754889709993,-1929.66,0.00037384,120]
[378506120,1754889710018,-1929.66,0.00037384,120]
[378506121,1754889710042,-1929.66,0.00037384,120]
[378506123,1754889710067,-1929.66,0.00037384,120]
[378506124,1754889710092,-1929.66,0.00037384,120]
[378506125,1754889710116,-1929.66,0.00037384,120]
[378506126,1754889710141,-1929.66,0.00037384,120]
[378506127,1754889710166,-1929.66,0.00037384,120]
[378506128,1754889710192,-1929.66,0.00037384,120]
[378506129,1754889710218,-1929.66,0.00037384,120]
[378506130,1754889710242,-1929.66,0.00037384,120]
[378506131,1754889710267,-1929.66,0.00037384,120]
[378506132,1754889710290,-1929.66,0.00037384,120]
[378506133,1754889710314,-1929.66,0.00037384,120]
[378506134,1754889710338,-1929.66,0.00037384,120]
[378506135,1754889710361,-500.0,0.00037384,120]
[378506136,1754889710384,-500.0,0.00037384,120]
[378506137,1754889710408,-1929.66,0.00037384,120]
[378506138,1754889710431,-500.0,0.00037384,120]
[378506140,1754889710454,-1929.66,0.00037384,120]
[378506141,1754889710477,-213.62320232,0.00037384,120]
[378506142,1754889710501,-1929.8457,0.00037384,120]
[378506147,1754889711885,-100.0,0.00015414,2]
[378506150,1754889713273,-200.0,0.00015169,2]
[378506154,1754889715106,-280.0,0.00026,120]
[378506155,1754889715563,-400.0,0.00030136,120]
[378506156,1754889715594,-400.0,0.00030136,120]
[378506157,1754889715623,-668.52,0.00030136,120]
[378506158,1754889715650,-400.0,0.00030136,120]
[378506160,1754889715677,-629.0,0.00030136,120]
[378506161,1754889715704,-400.0,0.00030136,120]
[378506162,1754889715733,-439.78,0.00030136,120]
[378506163,1754889715759,-400.0,0.00030136,120]
[378506164,1754889715786,-1015.87,0.00030136,120]
[378506165,1754889715814,-586.04,0.00030136,120]
[378506166,1754889715841,-1233.16,0.00030136,120]
[378506167,1754889715869,-1002.11,0.00030136,120]
[378506168,1754889715896,-400.0,0.00030136,120]
[378506169,1754889715924,-806.21,0.00030136,120]
[378506170,1754889715951,-1296.83,0.00030136,120]
[378506171,1754889715979,-400.0,0.00030136,120]
[378506172,1754889716005,-400.0,0.00030136,120]
[378506173,1754889716031,-400.0,0.00030136,120]
[378506175,1754889716057,-400.0,0.00030136,120]
[378506176,1754889716085,-3041.43,0.00030136,120]
[378506177,1754889716112,-400.0,0.00030136,120]
[378506178,1754889716138,-403.66067328,0.00030136,120]
[378506179,1754889716166,-604.0,0.00030136,120]
[378506180,1754889716193,-500.0,0.00030136,120]
[378506181,1754889716219,-400.0,0.00030136,120]
[378506182,1754889716244,-400.0,0.00030136,120]
[378506183,1754889716270,-500.0,0.00030136,120]
[378506184,1754889716300,-890.2,0.00030136,120]
[378506185,1754889716327,-500.0,0.00030136,120]
[378506186,1754889716355,-500.0,0.00030136,120]
[378506188,1754889716382,-500.0,0.00030136,120]
[378506189,1754889716409,-500.0,0.00030136,120]
[378506190,1754889716436,-500.0,0.00030136,120]
[378506191,1754889716463,-500.0,0.00030136,120]
[378506192,1754889716491,-400.0,0.00030136,120]
[378506193,1754889716520,-617.24,0.00030136,120]
[378506194,1754889716547,-500.0,0.00030136,120]
[378506195,1754889716576,-500.0,0.00030136,120]
[378506196,1754889716605,-500.0,0.00030136,120]
[378506197,1754889716632,-500.0,0.00030136,120]
[378506198,1754889716659,-500.0,0.00030136,120]
[378506199,1754889716686,-400.0,0.00030136,120]
[378506200,1754889716715,-500.0,0.00030136,120]
[378506201,1754889716744,-500.0,0.00030136,120]
[378506202,1754889716772,-398.84724935,0.00030136,120]
[378506203,1754889716800,-1513.37,0.00030136,120]
[378506204,1754889716827,-783.1,0.00030136,120]
[378506205,1754889716855,-873.79,0.00030136,120]
[378506206,1754889716884,-579.9,0.00030136,120]
[378506207,1754889716912,-400.0,0.00030136,120]
[378506209,1754889716940,-401.33095064,0.00030136,120]
[378506210,1754889716968,-562.83,0.00030136,120]
[378506211,1754889716995,-400.0,0.00030136,120]
[378506212,1754889717024,-2553.82,0.00030136,120]
[378506213,1754889717052,-490.50259474,0.00030136,120]
[378506214,1754889717080,-400.0,0.00030136,120]
[378506215,1754889717106,-500.0,0.00030136,120]
[378506216,1754889717133,-500.0,0.00030136,120]
[378506217,1754889717159,-500.0,0.00030136,120]
[378506218,1754889717185,-500.0,0.00030136,120]
[378506219,1754889717212,-500.0,0.00030136,120]
[378506220,1754889717238,-401.74495203,0.00030136,120]
[378506221,1754889717263,-527.3064655,0.00030136,120]
[378506222,1754889717289,-400.0,0.00030136,120]
[378506223,1754889717315,-400.0,0.00030136,120]
[378506225,1754889717340,-500.0,0.00030136,120]
[378506226,1754889717366,-1225.47,0.00030136,120]
[378506227,1754889717392,-699.1,0.00030136,120]
[378506228,1754889717418,-1907.21,0.00030136,120]
[378506229,1754889717444,-753.71,0.00030136,120]
[378506230,1754889717470,-400.0,0.00030136,120]
[378506231,1754889717497,-400.0,0.00030136,120]
[378506232,1754889717524,-438.23,0.00030136,120]
[378506233,1754889717550,-400.0,0.00030136,120]
[378506234,1754889717578,-516.64,0.00030136,120]
[378506235,1754889717608,-400.0,0.00030136,120]
[378506236,1754889717635,-1468.68,0.00030136,120]
[378506238,1754889717661,-597.38,0.00030136,120]
[378506239,1754889717688,-400.0,0.00030136,120]
[378506240,1754889717716,-426.32,0.00030136,120]
[378506241,1754889717744,-400.0,0.00030136,120]
[378506242,1754889717772,-400.0,0.00030136,120]
[378506243,1754889717801,-400.0,0.00030136,120]
[378506244,1754889717828,-1257.75,0.00030136,120]
[378506245,1754889717856,-400.0,0.00030136,120]
[378506246,1754889717883,-621.59,0.00030136,120]
[378506247,1754889717912,-400.0,0.00030136,120]
[378506248,1754889717938,-500.0,0.00030136,120]
[378506249,1754889717965,-500.0,0.00030136,120]
[378506250,1754889717991,-741.17,0.00030136,120]
[378506251,1754889718018,-500.0,0.00030136,120]
[378506252,1754889718045,-500.0,0.00030136,120]
[378506253,1754889718072,-1118.06,0.00030136,120]
[378506254,1754889718099,-500.0,0.00030136,120]
[378506256,1754889718387,-500.0,0.00030136,120]
[378506257,1754889718414,-405.32960383,0.00030136,120]
[378506258,1754889718441,-2523.11,0.00030136,120]
[378506259,1754889718471,-531.26,0.00030136,120]
[378506260,1754889718499,-460.0,0.00030136,120]
[378506261,1754889718533,-400.0,0.00030136,120]
[378506262,1754889718561,-400.79828456,0.00030136,120]
[378506263,1754889718591,-461.41055089,0.00030136,120]
[378506264,1754889718619,-511.08387882,0.00030136,120]
[378506265,1754889718648,-400.0,0.00030136,120]
[378506266,1754889718674,-685.63,0.00030136,120]
[378506267,1754889718702,-642.98,0.00030136,120]
[378506268,1754889718729,-400.0,0.00030136,120]
[378506269,1754889718757,-400.0,0.00030136,120]
[378506270,1754889718784,-842.36,0.00030136,120]
[378506271,1754889718813,-414.58,0.00030136,120]
[378506272,1754889718842,-1818.08,0.00030136,120]
[378506273,1754889718869,-404.14,0.00030136,120]
[378506274,1754889718896,-400.0,0.00030136,120]
[378506275,1754889718923,-1247.59,0.00030136,120]
[378506277,1754889718949,-400.0,0.00030136,120]
[378506278,1754889718977,-400.0,0.00030136,120]
[378506279,1754889719004,-400.0,0.00030136,120]
[378506280,1754889719030,-400.0,0.00030136,120]
[378506281,1754889719057,-487.31,0.00030136,120]
[378506282,1754889719086,-400.0,0.00030136,120]
[378506283,1754889719114,-771.87,0.00030136,120]
[378506284,1754889719141,-1204.44,0.00030136,120]
[378506285,1754889719168,-1825.68,0.00030136,120]
[378506286,1754889719194,-400.0,0.00030136,120]
[378506288,1754889719220,-400.0,0.00030136,120]
[378506289,1754889719247,-400.0,0.00030136,120]
[378506290,1754889719273,-400.0,0.00030136,120]
[378506291,1754889719300,-857.26,0.00030136,120]
[378506292,1754889719328,-1132.62,0.00030136,120]
[378506293,1754889719355,-430.12,0.00030136,120]
[378506294,1754889719383,-1762.07,0.00030136,120]
[378506295,1754889719410,-400.0,0.00030136,120]
[378506296,1754889719437,-400.0,0.00030136,120]
[378506297,1754889719463,-400.0,0.00030136,120]
[378506298,1754889719494,-400.0,0.00030136,120]
[378506299,1754889719523,-400.0,0.00030136,120]
[378506300,1754889719552,-477.37,0.00030136,120]
[378506301,1754889719585,-2133.97,0.00030136,120]
[378506302,1754889719613,-400.0,0.00030136,120]
[378506303,1754889719640,-4723.56,0.00030136,120]
[378506304,1754889719668,-500.0,0.00030136,120]
[378506305,1754889719697,-266.52,0.00030136,120]
[378506306,1754889719724,-2015.91,0.00030136,120]
[378506307,1754889719753,-400.0,0.00030136,120]
[378506308,1754889719782,-415.40915936,0.00030136,120]
[378506309,1754889719808,-400.0,0.00030136,120]
[378506310,1754889719835,-400.0,0.00030136,120]
[378506311,1754889719864,-1317.59,0.00030136,120]
[378506312,1754889719894,-400.0,0.00030136,120]
[378506313,1754889719920,-930.92,0.00030136,120]
[378506314,1754889719948,-400.0,0.00030136,120]
[378506315,1754889719975,-400.0,0.00030136,120]
[378506316,1754889720001,-3557.44,0.00030136,120]
[378506317,1754889720030,-3252.48,0.00030136,120]
[378506318,1754889720060,-3116.96,0.00030136,120]
[378506319,1754889720088,-400.0,0.00030136,120]
[378506320,1754889720116,-591.41,0.00030136,120]
[378506321,1754889720144,-400.0,0.00030136,120]
[378506322,1754889720172,-261.84069633,0.00030136,120]
[378506323,1754889720200,-1519.43,0.00030136,120]
[378506324,1754889720229,-1482.29,0.00030136,120]
[378506325,1754889720257,-822.89,0.00030136,120]
[378506326,1754889720283,-400.0,0.00030136,120]
[378506327,1754889720312,-400.0,0.00030136,120]
[378506328,1754889720338,-400.0,0.00030136,120]
[378506329,1754889720365,-400.0,0.00030136,120]
[378506330,1754889720391,-903.86,0.00030136,120]
[378506331,1754889720418,-400.0,0.00030136,120]
[378506332,1754889720444,-400.0,0.00030136,120]
[378506333,1754889720470,-2207.09,0.00030136,120]
[378506334,1754889720496,-400.0,0.00030136,120]
[378506335,1754889720523,-400.0,0.00030136,120]
[378506336,1754889720549,-401.80697678,0.00030136,120]
[378506337,1754889720577,-400.0,0.00030136,120]
[378506338,1754889720603,-400.0,0.00030136,120]
[378506339,1754889720629,-400.0,0.00030136,120]
[378506340,1754889720655,-400.0,0.00030136,120]
[378506341,1754889720684,-1382.96,0.00030136,120]
[378506342,1754889720712,-421.18,0.00030136,120]
[378506343,1754889720738,-429.26671692,0.00030136,120]
[378506344,1754889720765,-881.59,0.00030136,120]
[378506345,1754889720792,-402.8553077,0.00030136,120]
[378506346,1754889720821,-601.4,0.00030136,120]
[378506347,1754889720849,-400.0,0.00030136,120]
[378506348,1754889720876,-401.20942154,0.00030136,120]
[378506349,1754889720905,-400.0,0.00030136,120]
[378506350,1754889720934,-400.0,0.00030136,120]
[378506351,1754889720962,-400.0,0.00030136,120]
[378506352,1754889720991,-400.0,0.00030136,120]
[378506353,1754889721272,-412.39901297,0.00030136,120]
[378506354,1754889721300,-400.0,0.00030136,120]
[378506355,1754889721326,-432.68,0.00030136,120]
[378506356,1754889721353,-1146.4,0.00030136,120]
[378506357,1754889721380,-406.34486495,0.00030136,120]
[378506358,1754889721408,-434.28,0.00030136,120]
[378506359,1754889721436,-2578.19,0.00030136,120]
[378506360,1754889721463,-460.94269995,0.00030136,120]
[378506361,1754889721490,-400.0,0.00030136,120]
[378506362,1754889721520,-400.0,0.00030136,120]
[378506363,1754889721547,-1317.44,0.00030136,120]
[378506364,1754889721577,-400.0,0.00030136,120]
[378506365,1754889721606,-400.0,0.00030136,120]
[378506366,1754889721633,-400.0,0.00030136,120]
[378506367,1754889721659,-781.83,0.00030136,120]
[378506368,1754889721688,-400.0,0.00030136,120]
[378506369,1754889721718,-529.94220757,0.00030136,120]
[378506370,1754889721750,-402.87181132,0.00030136,120]
[378506371,1754889721794,-1321.9,0.00030136,120]
[378506372,1754889721827,-701.75,0.00030136,120]
[378506373,1754889721857,-400.0,0.00030136,120]
[378506374,1754889721886,-400.0,0.00030136,120]
[378506375,1754889721914,-1729.35,0.00030136,120]
[378506376,1754889721943,-400.0,0.00030136,120]
[378506377,1754889721974,-625.83,0.00030136,120]
[378506378,1754889722005,-512.45,0.00030136,120]
[378506379,1754889722035,-400.0,0.00030136,120]
[378506380,1754889722069,-1051.55,0.00030136,120]
[378506381,1754889722100,-400.0,0.00030136,120]
[378506382,1754889722132,-400.0,0.00030136,120]
[378506383,1754889722160,-400.0,0.00030136,120]
[378506384,1754889722189,-400.0,0.00030136,120]
[378506385,1754889722216,-1319.43,0.00030136,120]
[378506386,1754889722243,-400.0,0.00030136,120]
[378506387,1754889722269,-675.25,0.00030136,120]
[378506388,1754889722296,-400.0,0.00030136,120]
[378506389,1754889722326,-2477.3,0.00030136,120]
[378506390,1754889722353,-400.0,0.00030136,120]
[378506391,1754889722380,-448.6,0.00030136,120]
[378506392,1754889722407,-476.24,0.00030136,120]
[378506393,1754889722434,-400.0,0.00030136,120]
[378506394,1754889722461,-400.0,0.00030136,120]
[378506395,1754889722488,-1648.0,0.00030136,120]
[378506396,1754889722517,-400.0,0.00030136,120]
[378506397,1754889722567,-1841.73,0.00030136,120]
[378506398,1754889722612,-400.0,0.00030136,120]
[378506399,1754889722656,-460.0,0.00030136,120]
[378506400,1754889722701,-929.57,0.00030136,120]
[378506401,1754889722747,-400.0,0.00030136,120]
[378506402,1754889722795,-1330.45,0.00030136,120]
[378506403,1754889722846,-400.0,0.00030136,120]
[378506404,1754889722896,-400.0,0.00030136,120]
[378506405,1754889722944,-400.0,0.00030136,120]
[378506406,1754889722993,-400.0,0.00030136,120]
[378506407,1754889723041,-400.0,0.00030136,120]
[378506408,1754889723093,-400.0,0.00030136,120]
[378506409,1754889723147,-2274.39,0.00030136,120]
[378506410,1754889723199,-759.02,0.00030136,120]
[378506411,1754889723252,-400.0,0.00030136,120]
[378506412,1754889723304,-611.89,0.00030136,120]
[378506413,1754889723354,-400.80315217,0.00030136,120]
[378506414,1754889723404,-1378.72,0.00030136,120]
[378506415,1754889723455,-400.0,0.00030136,120]
[378506416,1754889723506,-401.62,0.00030136,120]
[378506417,1754889723565,-423.22,0.00030136,120]
[378506418,1754889723618,-1068.67,0.00030136,120]
[378506419,1754889723670,-630.72,0.00030136,120]
[378506420,1754889723722,-579.31,0.00030136,120]
[378506421,1754889723774,-400.0,0.00030136,120]
[378506422,1754889723828,-400.0,0.00030136,120]
[378506423,1754889723883,-500.0,0.00030136,120]
[378506424,1754889723938,-500.0,0.00030136,120]
[378506425,1754889723991,-500.0,0.00030136,120]
[378506426,1754889724042,-419.17,0.00030136,120]
[378506427,1754889724095,-785.99,0.00030136,120]
[378506428,1754889724147,-500.0,0.00030136,120]
[378506429,1754889724200,-400.0,0.00030136,120]
[378506430,1754889724253,-500.0,0.00030136,120]
[378506431,1754889724313,-500.0,0.00030136,120]
[378506432,1754889724370,-400.0,0.00030136,120]
[378506433,1754889724425,-793.84,0.00030136,120]
[378506434,1754889724473,-500.0,0.00030136,120]
[378506435,1754889724523,-500.0,0.00030136,120]
[378506436,1754889724573,-500.0,0.00030136,120]
[378506437,1754889724622,-400.0,0.00030136,120]
[378506438,1754889724670,-472.46,0.00030136,120]
[378506439,1754889724719,-642.37,0.00030136,120]
[378506440,1754889724769,-400.0,0.00030136,120]
[378506441,1754889724819,-400.0,0.00030136,120]
[378506442,1754889724870,-1432.74,0.00030136,120]
[378506443,1754889724920,-400.0,0.00030136,120]
[378506444,1754889724965,-942.82,0.00030136,120]
[378506446,1754889725017,-836.7,0.00030136,120]
[378506447,1754889725065,-400.0,0.00030136,120]
[378506448,1754889725113,-400.0,0.00030136,120]
[378506449,1754889725388,-400.0,0.00030136,120]
[378506450,1754889725435,-1441.18,0.00030136,120]
[378506451,1754889725483,-400.0,0.00030136,120]
[378506452,1754889725532,-973.98,0.00030136,120]
[378506453,1754889725580,-475.87,0.00030136,120]
[378506454,1754889725630,-400.0,0.00030136,120]
[378506456,1754889725678,-742.33,0.00030136,120]
[378506457,1754889725728,-400.0,0.00030136,120]
[378506458,1754889725778,-652.37,0.00030136,120]
[378506459,1754889725831,-5719.3,0.00030136,120]
[378506460,1754889725882,-400.0,0.00030136,120]
[378506462,1754889725929,-1563.72,0.00030136,120]
[378506463,1754889725977,-400.0,0.00030136,120]
[378506464,1754889726025,-400.0,0.00030136,120]
[378506465,1754889726075,-1513.52,0.00030136,120]
[378506466,1754889726122,-819.0,0.00030136,120]
[378506467,1754889726170,-400.0,0.00030136,120]
[378506468,1754889726217,-400.0,0.00030136,120]
[378506469,1754889726263,-400.0,0.00030136,120]
[378506470,1754889726311,-400.0,0.00030136,120]
[378506471,1754889726363,-3075.42,0.00030136,120]
[378506472,1754889726412,-400.0,0.00030136,120]
[378506473,1754889726462,-400.0,0.00030136,120]
[378506474,1754889726514,-400.0,0.00030136,120]
[378506475,1754889726571,-833.56,0.00030136,120]
[378506476,1754889726619,-676.65,0.00030136,120]
[378506477,1754889726663,-881.24,0.00030136,120]
[378506478,1754889726707,-400.0,0.00030136,120]
[378506479,1754889726754,-1091.07,0.00030136,120]
[378506480,1754889726802,-400.0,0.00030136,120]
[378506481,1754889726851,-400.0,0.00030136,120]
[378506482,1754889726905,-400.0,0.00030136,120]
[378506483,1754889726959,-400.0,0.00030136,120]
[378506484,1754889727022,-670.04,0.00030136,120]
[378506485,1754889727070,-400.0,0.00030136,120]
[378506486,1754889727119,-400.0,0.00030136,120]
[378506487,1754889727170,-400.0,0.00030136,120]
[378506489,1754889727219,-400.0,0.00030136,120]
[378506490,1754889727265,-400.0,0.00030136,120]
[378506491,1754889727313,-400.0,0.00030136,120]
[378506492,1754889727365,-400.0,0.00030136,120]
[378506493,1754889727415,-557.76,0.00030136,120]
[378506494,1754889727462,-760.68,0.00030136,120]
[378506495,1754889727522,-915.09,0.00030136,120]
[378506497,1754889727575,-411.31,0.00030136,120]
[378506498,1754889727629,-400.0,0.00030136,120]
[378506499,1754889727678,-1597.21,0.00030136,120]
[378506501,1754889727729,-400.0,0.00030136,120]
[378506502,1754889727784,-1397.92,0.00030136,120]
[378506503,1754889727838,-532.28,0.00030136,120]
[378506504,1754889727889,-400.0,0.00030136,120]
[378506505,1754889727938,-664.13,0.00030136,120]
[378506506,1754889727987,-400.0,0.00030136,120]
[378506507,1754889728036,-400.0,0.00030136,120]
[378506508,1754889728086,-400.0,0.00030136,120]
[378506509,1754889728140,-400.0,0.00030136,120]
[378506510,1754889728193,-813.83,0.00030136,120]
[378506511,1754889728244,-411.88,0.00030136,120]
[378506512,1754889728292,-458.13,0.00030136,120]
[378506513,1754889728343,-2328.99,0.00030136,120]
[378506514,1754889728390,-400.0,0.00030136,120]
[378506515,1754889728437,-850.7,0.00030136,120]
[378506516,1754889728484,-300.0,0.00030136,120]
[378506517,1754889728533,-1110.99,0.00030136,120]
[378506518,1754889728584,-400.0,0.00030136,120]
[378506519,1754889728635,-563.97,0.00030136,120]
[378506520,1754889728683,-493.11,0.00030136,120]
[378506521,1754889728736,-770.03,0.00030136,120]
[378506522,1754889728787,-400.0,0.00030136,120]
[378506523,1754889728838,-1369.09,0.00030136,120]
[378506524,1754889728891,-1040.27,0.00030136,120]
[378506525,1754889728945,-2013.24,0.00030136,120]
[378506526,1754889728998,-649.39,0.00030136,120]
[378506527,1754889729047,-400.0,0.00030136,120]
[378506528,1754889729097,-400.0,0.00030136,120]
[378506529,1754889729148,-943.49,0.00030136,120]
[378506530,1754889729197,-495.28689457,0.00030136,120]
[378506531,1754889729245,-400.0,0.00030136,120]
[378506532,1754889729297,-400.0,0.00030136,120]
[378506534,1754889729346,-400.0,0.00030136,120]
[378506535,1754889729394,-400.0,0.00030136,120]
[378506536,1754889729443,-796.64,0.00030136,120]
[378506537,1754889729492,-413.33,0.00030136,120]
[378506538,1754889729544,-400.0,0.00030136,120]